fUSD/lending_fUSD_20251220
["ID","MTS","AMOUNT","RATE_DAILY","PERIOD"]
[399286796,1766245842511,-150.0,0.00015409,2]
[399286797,1766245842520,-150.0,0.00015429,2]
[399286798,1766245842529,-150.0,0.00015447,2]
[399286799,1766245842544,-150.0,0.00015458,2]
[399286800,1766245842554,-150.0,0.00015458,2]
[399286801,1766245842567,-643.86357922,0.00015459,2]
[399286802,1766245842588,-150.0,0.00015488,2]
[399286803,1766245842599,-150.0,0.000155,2]
[399286804,1766245842609,-150.0,0.000155,2]
[399286805,1766245842619,-150.0,0.000155,2]
[399286806,1766245842632,-617.40005154,0.0001552,2]
[399286807,1766245842642,-1199.0,0.0001552,2]
[399286808,1766245842652,-2618.55413895,0.00015526,2]
[399286809,1766245842662,-150.0,0.0001553,2]
[399286810,1766245842672,-150.0,0.00015542,2]
[399286811,1766245842682,-150.0,0.00015542,2]
[399286812,1766245842694,-150.0,0.00015553,2]
[399286813,1766245842704,-2500.0,0.00015558,2]
[399286814,1766245842714,-150.0,0.00015571,2]
[399286815,1766245842724,-150.0,0.00015587,2]
[399286816,1766245842734,-150.0,0.00015606,2]
[399286817,1766245842744,-150.0,0.00015606,2]
[399286818,1766245842753,-178.41,0.00015616,2]
[399286819,1766245842763,-178.41,0.00015616,2]
[399286820,1766245842773,-178.41,0.00015616,2]
[399286821,1766245842783,-178.41,0.00015616,2]
[399286822,1766245842793,-178.41,0.00015616,2]
[399286823,1766245842803,-178.41,0.00015616,2]
[399286824,1766245842813,-178.41,0.00015616,2]
[399286825,1766245842828,-178.41,0.00015616,2]
[399286826,1766245842845,-1000.0,0.00015622,2]
[399286827,1766245842855,-150.0,0.00015627,2]
[399286828,1766245842865,-150.0,0.00015627,2]
[399286829,1766245842875,-150.0,0.00015627,2]
[399286830,1766245842885,-150.0,0.00015627,2]
[399286831,1766245842895,-150.0,0.00015642,2]
[399286832,1766245842904,-150.0,0.00015652,2]
[399286833,1766245842914,-150.0,0.00015659,2]
[399286834,1766245842924,-200.12511124,0.00015664,2]
[399286835,1766245842933,-150.0,0.00015687,2]
[399286836,1766245842943,-321.87985655,0.000157,2]
[399286837,1766245842952,-500.0,0.00015706,2]
[399286838,1766245842962,-217.8076658,0.00015706,2]
[399286839,1766245842971,-822.21012814,0.0001571,2]
[399286840,1766245842981,-150.0,0.00015712,2]
[399286841,1766245842993,-150.0,0.00015712,2]
[399286842,1766245843002,-150.0,0.00015712,2]
[399286843,1766245843011,-150.0,0.00015712,2]
[399286844,1766245843021,-150.0,0.00015712,2]
[399286845,1766245843031,-150.0,0.00015712,2]
[399286847,1766245843041,-559670.0416735,0.0001572,2]
[399286849,1766245843050,-12470.5129032,0.0001572,2]
[399286851,1766245843060,-151.0,0.0001572,2]
[399286852,1766245843069,-151.0,0.0001572,2]
[399286853,1766245843079,-500.0,0.00015721,2]
[399286854,1766245843088,-2000.0,0.00015722,2]
[399286855,1766245843098,-200.0,0.00015722,2]
[399286856,1766245843107,-200.0,0.00015751,2]
[399286857,1766245843117,-150.0,0.00015765,2]
[399286858,1766245843126,-150.0,0.00015773,2]
[399286859,1766245843136,-150.0,0.00015783,2]
[399286860,1766245843146,-150.0,0.00015787,2]
[399286861,1766245843155,-153.69901864,0.00015793,2]
[399286862,1766245843164,-311.1,0.00015793,2]
[399286863,1766245843174,-287.61899177,0.00015793,2]
[399286864,1766245843184,-166.66,0.00015796,2]
[399286865,1766245843193,-150.0,0.00015797,2]
[399286866,1766245843203,-150.0,0.00015797,2]
[399286867,1766245843213,-178.41,0.000158,2]
[399286868,1766245843222,-2618.55413895,0.00015801,2]
[399286869,1766245843232,-150.0,0.00015818,2]
[399286870,1766245843241,-150.0,0.00015818,2]
[399286871,1766245843251,-643.86357922,0.0001582,2]
[399286872,1766245843262,-11648.12,0.00015822,2]
[399286873,1766245843272,-150.0,0.00015854,2]
[399286874,1766245843282,-150.0,0.00015854,2]
[399286875,1766245843292,-150.0,0.00015872,2]
[399286876,1766245843301,-1258.91027464,0.00015879,2]
[399286877,1766245843311,-200.0,0.00015879,2]
[399286878,1766245843320,-150.0,0.00015882,2]
[399286879,1766245843331,-150.0,0.00015882,2]
[399286880,1766245843340,-150.0,0.00015887,2]
[399286881,1766245843350,-150.0,0.00015894,2]
[399286882,1766245843359,-761.32655841,0.000159,2]
[399286883,1766245843369,-761.3265584,0.000159,2]
[399286884,1766245843379,-178.41,0.000159,2]
[399286885,1766245843388,-178.41,0.000159,2]
[399286886,1766245843398,-153.20553774,0.00015902,2]
[399286887,1766245843408,-150.0,0.00015925,2]
[399286889,1766245843418,-150.0,0.00015925,2]
[399286891,1766245843428,-150.0,0.00015925,2]
[399286892,1766245843437,-150.0,0.00015967,2]
[399286894,1766245843447,-150.0,0.00015967,2]
[399286895,1766245843456,-150.0,0.00015967,2]
[399286897,1766245843466,-150.0,0.00015967,2]
[399286899,1766245843475,-198.63978603,0.00015973,2]
[399286900,1766245843485,-500.0,0.00015973,2]
[399286901,1766245843494,-308.61264672,0.00015973,2]
[399286902,1766245843503,-162.03877535,0.00015973,2]
[399286903,1766245843513,-500.0,0.00015973,2]
[399286904,1766245843523,-500.0,0.00015973,2]
[399286905,1766245843532,-500.0,0.00015973,2]
[399286906,1766245843542,-159.43095819,0.00015973,2]
[399286907,1766245843551,-500.0,0.00015973,2]
[399286908,1766245843561,-160.176,0.00015973,2]
[399286909,1766245843570,-160.176,0.00015973,2]
[399286910,1766245843579,-395.24069311,0.00015973,2]
[399286911,1766245843589,-500.0,0.00015973,2]
[399286912,1766245843598,-150.0,0.00015978,2]
[399286913,1766245843608,-150.0,0.00015987,2]
[399286914,1766245843618,-150.0,0.00015995,2]
[399286915,1766245843628,-150.0,0.00016016,2]
[399286916,1766245843641,-150.0,0.00016031,2]
[399286917,1766245843650,-150.0,0.00016031,2]
[399286918,1766245843661,-200.0,0.00016038,2]
[399286919,1766245843671,-150.0,0.00016052,2]
[399286920,1766245843682,-150.0,0.00016052,2]
[399286921,1766245843692,-150.0,0.00016066,2]
[399286922,1766245843701,-659.0,0.00016067,2]
[399286923,1766245843710,-640.24385345,0.00016068,2]
[399286924,1766245843719,-1199.0,0.00016068,2]
[399286925,1766245843730,-200.12511124,0.00016076,2]
[399286926,1766245843739,-2618.55413895,0.00016076,2]
[399286927,1766245843750,-150.0,0.00016084,2]
[399286928,1766245843759,-150.0,0.00016087,2]
[399286929,1766245843768,-659.0,0.00016096,2]
[399286930,1766245843777,-1325.0,0.000161,2]
[399286931,1766245843787,-612.0,0.000161,2]
[399286932,1766245843796,-2763.256,0.000161,2]
[399286933,1766245843806,-1608.0,0.000161,2]
[399286934,1766245843815,-517.522,0.000161,2]
[399286935,1766245843824,-4845.428,0.000161,2]
[399286936,1766245843833,-564.0,0.000161,2]
[399286937,1766245843842,-6528.0,0.000161,2]
[399286938,1766245843852,-177.408,0.000161,2]
[399286939,1766245843861,-2428.0,0.000161,2]
[399286940,1766245843870,-150.0,0.00016137,2]
[399286941,1766245843880,-150.0,0.00016137,2]
[399286942,1766245843889,-150.0,0.00016137,2]
[399286943,1766245843898,-150.0,0.00016137,2]
[399286944,1766245843908,-150.0,0.00016137,2]
[399286945,1766245843918,-150.0,0.00016137,2]
[399286946,1766245843928,-150.0,0.00016137,2]
[399286947,1766245843937,-659.0,0.00016151,2]
[399286948,1766245843947,-964.17435653,0.00016172,2]
[399286949,1766245843957,-643.86357922,0.0001618,2]
[399286950,1766245843966,-150.0,0.00016187,2]
[399286951,1766245843976,-150.0,0.0001619,2]
[399286953,1766245843985,-200.0,0.00016198,2]
[399286955,1766245843995,-5000.00070951,0.000162,5]
[399286958,1766245844005,-150.0,0.00016208,2]
[399286960,1766245844015,-150.0,0.00016222,2]
[399286961,1766245844024,-150.0,0.00016222,2]
[399286963,1766245844034,-150.0,0.00016243,2]
[399286964,1766245844043,-150.0,0.00016243,2]
[399286965,1766245844053,-150.0,0.00016258,2]
[399286966,1766245844066,-150.0,0.00016279,2]
[399286967,1766245844076,-150.0,0.00016287,2]
[399286968,1766245844087,-150.0,0.00016296,2]
[399286969,1766245844097,-150.0,0.00016307,2]
[399286970,1766245844107,-150.0,0.00016307,2]
[399286971,1766245844117,-150.0,0.00016307,2]
[399286972,1766245844126,-150.0,0.00016307,2]
[399286973,1766245844136,-659.0,0.00016339,2]
[399286974,1766245844145,-150.0,0.00016349,2]
[399286975,1766245844155,-150.0,0.00016349,2]
[399286976,1766245844165,-150.0,0.00016349,2]
[399286977,1766245844175,-2618.55413895,0.0001635,2]
[399286978,1766245844184,-200.0,0.0001636,2]
[399286979,1766245844193,-150.0,0.0001638,2]
[399286980,1766245844203,-150.0,0.00016387,2]
[399286981,1766245844212,-150.0,0.00016392,2]
[399286982,1766245844222,-150.0,0.00016392,2]
[399286983,1766245844231,-150.0,0.00016402,2]
[399286984,1766245844241,-250.0,0.00016417,2]
[399286985,1766245844250,-150.0,0.0001642,2]
[399286986,1766245844260,-150.0,0.0001642,2]
[399286987,1766245844272,-659.0,0.00016435,2]
[399286988,1766245844283,-500.0,0.00016438,2]
[399286989,1766245844292,-500.0,0.00016438,2]
[399286990,1766245844303,-500.0,0.00016438,2]
[399286991,1766245844312,-600.0,0.00016438,2]
[399286992,1766245844322,-174.64,0.00016438,2]
[399286993,1766245844331,-178.41,0.00016438,2]
[399286994,1766245844342,-150.0,0.00016438,2]
[399286995,1766245844351,-150.0,0.00016438,2]
[399286996,1766245844361,-1106.68,0.00016438,2]
[399286997,1766245844371,-150.0,0.00016438,2]
[399286998,1766245844380,-150.0,0.00016455,2]
[399286999,1766245844391,-150.0,0.00016455,2]
[399287000,1766245844402,-659.0,0.00016464,2]
[399287001,1766245844411,-150.0,0.00016477,2]
[399287002,1766245844421,-150.0,0.00016477,2]
[399287003,1766245844431,-659.0,0.0001648,2]
[399287004,1766245844441,-150.0,0.00016487,2]
[399287005,1766245844452,-200.12511124,0.00016488,2]
[399287006,1766245844462,-150.0,0.00016491,2]
[399287007,1766245844472,-659.0,0.00016496,2]
[399287008,1766245844481,-150.0,0.00016501,2]
[399287009,1766245844490,-150.0,0.00016509,2]
[399287010,1766245844499,-501.0,0.00016521,2]
[399287011,1766245844509,-691.6701968,0.00016521,2]
[399287012,1766245844518,-1000.0,0.00016521,2]
[399287013,1766245844527,-9542.5,0.00016522,2]
[399287014,1766245844536,-659.0,0.00016536,2]
[399287015,1766245844546,-3622.72760866,0.00016539,2]
[399287016,1766245844555,-643.86357922,0.0001654,2]
[399287017,1766245844564,-150.0,0.00016562,2]
[399287018,1766245844574,-150.0,0.00016562,2]
[399287019,1766245844583,-150.0,0.00016562,2]
[399287020,1766245844592,-150.0,0.00016562,2]
[399287021,1766245844602,-150.0,0.00016562,2]
[399287022,1766245844611,-150.0,0.00016562,2]
[399287023,1766245844621,-10333.35358582,0.00016562,2]
[399287024,1766245844634,-246.57992231,0.00016575,2]
[399287025,1766245844648,-150.0,0.00016575,2]
[399287026,1766245844666,-500.0,0.00016575,2]
[399287027,1766245844683,-500.0,0.00016575,2]
[399287028,1766245844692,-500.0,0.00016575,2]
[399287029,1766245844703,-500.0,0.00016575,2]
[399287030,1766245844713,-150.0,0.00016575,2]
[399287031,1766245844722,-500.0,0.00016575,2]
[399287032,1766245844732,-500.0,0.00016575,2]
[399287033,1766245844741,-150.0,0.00016575,2]
[399287034,1766245844750,-671.0,0.00016575,2]
[399287035,1766245844759,-150.0,0.00016587,2]
[399287036,1766245844769,-150.0,0.00016615,2]
[399287037,1766245844779,-663.93287602,0.00016616,2]
[399287038,1766245844789,-1199.0,0.00016616,2]
[399287039,1766245844799,-150.0,0.00016622,2]
[399287040,1766245844808,-2618.55413895,0.00016625,2]
[399287041,1766245844818,-150.0,0.00016632,2]
[399287042,1766245844827,-150.0,0.00016647,2]
[399287043,1766245844837,-150.0,0.00016647,2]
[399287044,1766245844847,-150.0,0.00016647,2]
[399287045,1766245844856,-150.0,0.00016647,2]
[399287046,1766245844866,-211.215346,0.00016647,2]
[399287047,1766245844875,-151.0,0.00016647,2]
[399287048,1766245844884,-150.0,0.00016668,2]
[399287049,1766245844894,-150.0,0.00016668,2]
[399287050,1766245844903,-659.0,0.00016683,2]
[399287051,1766245844913,-150.0,0.00016687,2]
[399287052,1766245844922,-738.0,0.00016699,2]
[399287053,1766245844932,-150.0,0.00016703,2]
[399287054,1766245844942,-150.0,0.00016712,2]
[399287055,1766245844951,-500.0,0.00016712,2]
[399287056,1766245844960,-500.0,0.00016712,2]
[399287057,1766245844969,-500.0,0.00016712,2]
[399287058,1766245844979,-500.0,0.00016712,2]
[399287059,1766245844988,-500.0,0.00016712,2]
[399287060,1766245844998,-500.0,0.00016712,2]
[399287061,1766245845007,-150.0,0.00016712,2]
[399287062,1766245845195,-671.0,0.00016712,2]
[399287063,1766245845206,-4000.0,0.00016712,2]
[399287064,1766245845216,-600.0,0.00016712,2]
[399287065,1766245845226,-167.75,0.00016712,2]
[399287066,1766245845235,-150.0,0.00016721,2]
[399287067,1766245845245,-150.0,0.00016732,2]
[399287068,1766245845255,-150.0,0.00016732,2]
[399287069,1766245845264,-2000.0,0.00016737,2]
[399287070,1766245845273,-2000.0,0.00016737,2]
[399287071,1766245845283,-2000.0,0.00016737,2]
[399287072,1766245845292,-2000.0,0.00016737,2]
[399287073,1766245845301,-2000.0,0.00016737,2]
[399287074,1766245845311,-150.0,0.00016744,2]
[399287075,1766245845320,-200.0,0.00016765,2]
[399287076,1766245845329,-151.0,0.00016765,2]
[399287077,1766245845338,-659.0,0.00016766,2]
[399287078,1766245845348,-150.0,0.00016774,2]
[399287079,1766245845357,-150.0,0.00016774,2]
[399287080,1766245845367,-150.0,0.00016774,2]
[399287081,1766245845377,-150.0,0.00016786,2]
[399287082,1766245845386,-659.0,0.00016796,2]
[399287083,1766245845396,-214.887714,0.00016809,2]
[399287084,1766245845405,-659.0,0.0001681,2]
[399287085,1766245845415,-3536.13897245,0.00016811,2]
[399287086,1766245845424,-150.0,0.00016816,2]
[399287087,1766245845434,-150.0,0.00016816,2]
[399287088,1766245845443,-659.0,0.00016825,2]
[399287089,1766245845455,-150.0,0.00016827,2]
[399287090,1766245845464,-715.0,0.00016841,2]
[399287091,1766245845474,-151.0,0.00016841,2]
[399287092,1766245845483,-151.0,0.00016841,2]
[399287093,1766245845493,-151.0,0.00016841,2]
[399287094,1766245845503,-151.0,0.00016841,2]
[399287095,1766245845512,-150.0,0.00016845,2]
[399287096,1766245845521,-250.0,0.00016849,2]
[399287097,1766245845531,-500.0,0.00016849,2]
[399287098,1766245845540,-374.88126201,0.00016849,2]
[399287099,1766245845550,-500.0,0.00016849,2]
[399287100,1766245845559,-171.69482467,0.00016849,2]
[399287101,1766245845568,-500.0,0.00016849,2]
[399287102,1766245845578,-500.0,0.00016849,2]
[399287103,1766245845588,-150.0,0.00016849,2]
[399287104,1766245845598,-671.0,0.00016849,2]
[399287105,1766245845608,-150.0,0.00016865,2]
[399287106,1766245845618,-150.0,0.0001688,2]
[399287107,1766245845627,-150.0,0.0001688,2]
[399287108,1766245845641,-150.0,0.00016886,2]
[399287109,1766245845650,-165.0,0.000169,2]
[399287110,1766245845660,-10000.0,0.000169,2]
[399287111,1766245845670,-200.12511124,0.000169,2]
[399287112,1766245845681,-2618.55413895,0.000169,2]
[399287113,1766245845691,-643.86357922,0.000169,2]
[399287114,1766245845700,-3121.18198867,0.000169,2]
[399287115,1766245845711,-343.46387208,0.000169,2]
[399287116,1766245845721,-692.97788872,0.000169,2]
[399287117,1766245845731,-186.21416739,0.000169,2]
[399287118,1766245845740,-150.0,0.00016901,2]
[399287119,1766245845750,-150.0,0.00016901,2]
[399287120,1766245845759,-150.0,0.00016916,2]
[399287121,1766245845769,-659.0,0.00016919,2]
[399287122,1766245845779,-150.0,0.00016933,2]
[399287123,1766245845788,-200.0,0.00016973,2]
[399287124,1766245845798,-168.0,0.00016984,2]
[399287125,1766245845806,-500.0,0.00016986,2]
[399287126,1766245845816,-500.0,0.00016986,2]
[399287127,1766245845826,-500.0,0.00016986,2]
[399287128,1766245845835,-500.0,0.00016986,2]
[399287129,1766245845845,-150.0,0.00016986,2]
[399287130,1766245845854,-671.0,0.00016986,2]
[399287131,1766245845864,-151.0,0.00016986,2]
[399287132,1766245845874,-151.0,0.00016986,2]
[399287133,1766245845884,-151.0,0.00016986,2]
[399287134,1766245845895,-151.0,0.00016986,2]
[399287135,1766245845906,-151.0,0.00016986,2]
[399287136,1766245845915,-151.0,0.00016986,2]
[399287137,1766245845926,-151.0,0.00016986,2]
[399287138,1766245845936,-3869.93544157,0.00016986,2]
[399287139,1766245845946,-500.0,0.00016986,2]
[399287140,1766245845955,-189.61975,0.00016986,2]
[399287141,1766245845964,-600.0,0.00016986,2]
[399287142,1766245845974,-52831.43,0.00016986,2]
[399287143,1766245845982,-150.0,0.00016986,2]
[399287144,1766245845992,-150.00000001,0.00016986,2]
[399287145,1766245846002,-150.00000001,0.00016986,2]
[399287146,1766245846011,-150.0,0.00016986,2]
[399287147,1766245846021,-150.0,0.00016986,2]
[399287148,1766245846032,-150.00000001,0.00016986,2]
[399287149,1766245846043,-150.0,0.00016986,2]
[399287150,1766245846052,-150.0,0.00016986,2]
[399287151,1766245846061,-150.0,0.00016986,2]
[399287152,1766245846070,-150.0,0.00016986,2]
[399287153,1766245846079,-150.0,0.00016986,2]
[399287154,1766245846088,-822.21012814,0.0001699,2]
[399287155,1766245846098,-822.21012814,0.0001699,2]
[399287156,1766245846107,-659.0,0.00016994,2]
[399287157,1766245846116,-1194.29389268,0.00016999,5]
[399287158,1766245846126,-500.0,0.00016999,2]
[399287159,1766245846135,-500.0,0.00016999,2]
[399287160,1766245846145,-630.0,0.00016999,2]
[399287162,1766245846155,-150.0,0.00017,2]
[399287164,1766245846164,-2399357.85066515,0.00017,2]
[399287165,1766245846175,-156998.23497076,0.00017,2]
[399287166,1766245846184,-150.0,0.00017,2]
[399287167,1766245846194,-3566.36577974,0.00017,2]
[399287168,1766245846203,-7032.30254333,0.00017,2]
[399287169,1766245846212,-2018025.28187163,0.00017,2]
[399287170,1766245846443,-10540.5244921,0.00017,2]
[399287171,1766245846526,-691.24287986,0.00016737,2]
[399287172,1766245846537,-1292.21190686,0.00016737,2]
[399287173,1766245846548,-16.54521328,0.00016737,2]
[399287174,1766245846557,-1005.085,0.00016737,2]
[399287175,1766245846566,-551.50436901,0.00016849,2]
[399287176,1766245846577,-448.49563099,0.00016849,2]
[399287177,1766245846587,-1202.19246595,0.00017,2]
[399287178,1766245846598,-916.73474021,0.00017,2]
[399287179,1766245846609,-877.07771091,0.00017,2]
[399287180,1766245846620,-656.42984484,0.00017,2]
[399287181,1766245846634,-480.14190281,0.00017,2]
[399287182,1766245846645,-5053.92089234,0.00017,2]
[399287183,1766245846660,-682731.474422,0.00017,2]
[399287184,1766245846676,-834.84277497,0.00017,2]
[399287185,1766245846794,-3511.30381811,0.00017,2]
[399287186,1766245846805,-580.0299999,0.00017,2]
[399287187,1766245846817,-5893.178389,0.00017,2]
[399287188,1766245846829,-986.89522002,0.00017,2]
[399287276,1766246823067,152.96,6.783e-05,2]
[399287277,1766246823306,152.96,7.182e-05,2]
[399287278,1766246823508,152.96,7.581e-05,2]
[399287279,1766246823723,152.96,7.98e-05,2]
[399287280,1766246823935,152.96,8.379e-05,2]
[399287281,1766246824129,152.96,8.778e-05,2]
[399287282,1766246824342,152.96,9.177e-05,2]
[399287283,1766246824533,152.96,9.576e-05,2]
[399287284,1766246824735,152.96,9.975e-05,2]
[399287285,1766246824952,152.96,0.00010374,2]
[399287286,1766246825412,-500.0,0.0004292,120]
[399287287,1766246825459,-500.0,0.0004292,120]
[399287288,1766246825508,-187.49,0.0004292,120]
[399287289,1766246825552,-500.0,0.0004292,120]
[399287290,1766246825600,-525.75,0.0004292,120]
[399287291,1766246825646,-500.0,0.0004292,120]
[399287292,1766246825693,-339.67,0.0004292,120]
[399287293,1766246825743,-31667.42628732,0.0004292,120]
[399287294,1766246825792,-42246.9,0.0004292,90]
[399287295,1766246825841,-2033.87700653,0.0004292,120]
[399287296,1766246825892,-176.0,0.0004292,120]
[399287297,1766246825939,-5000.0,0.0004292,120]
[399287298,1766246825987,-1000.0,0.0004292,31]
[399287299,1766246826033,-5000.0,0.0004292,36]
[399287300,1766246826083,-415.8,0.0004292,120]
[399287301,1766246826130,-503.79152731,0.0004292,120]
[399287302,1766246826174,-372.61588932,0.0004292,60]
[399287303,1766246826220,-432.50715382,0.0004292,30]
[399287304,1766246826272,-377.85173577,0.0004292,120]
[399287305,1766246826322,-500.0,0.0004292,120]
[399287306,1766246826370,-500.0,0.0004292,120]
[399287307,1766246826420,-500.0,0.0004292,120]
[399287308,1766246826462,-500.0,0.0004292,120]
[399287309,1766246826505,-377.5556363,0.0004292,120]
[399287310,1766246826549,-500.0,0.0004292,120]
[399287311,1766246826594,-500.0,0.0004292,120]
[399287312,1766246826636,-500.0,0.0004292,120]
[399287313,1766246826678,-500.0,0.0004292,120]
[399287314,1766246826722,-500.0,0.0004292,120]
[399287315,1766246826767,-500.0,0.0004292,120]
[399287316,1766246826814,-500.0,0.0004292,120]
[399287317,1766246826857,-500.0,0.0004292,120]
[399287318,1766246826900,-189.01,0.0004292,120]
[399287319,1766246826942,-150.01,0.0004292,120]
[399287320,1766246826997,-647.32734468,0.0004292,90]
[399287321,1766246827046,-191.14513675,0.0004292,91]
[399287322,1766246827091,-389.77584611,0.0004292,120]
[399287323,1766246827136,-569.8224174,0.0004292,120]
[399287324,1766246827181,-190.66963782,0.0004292,90]
[399287325,1766246827225,-336.09247882,0.0004292,120]
[399287326,1766246827270,-499.9934101,0.0004292,120]
[399287327,1766246827313,-241.74719275,0.0004292,120]
[399287328,1766246827368,-470.05825696,0.0004292,120]
[399287329,1766246827417,-190.34587711,0.0004292,30]
[399287330,1766246827465,-598.94105754,0.0004292,120]
[399287331,1766246827510,-165.2130355,0.0004292,120]
[399287332,1766246827556,-151.53043067,0.0004292,120]
[399287333,1766246827607,-166.06980509,0.0004292,30]
[399287334,1766246827658,-258.66617519,0.0004292,30]
[399287335,1766246827703,-847.08829443,0.0004292,90]
[399287336,1766246827747,-973.47163758,0.0004292,52]
[399287337,1766246827791,-563.12787658,0.0004292,30]
[399287338,1766246827837,-451.76408724,0.0004292,120]
[399287339,1766246827883,-1208.8415854,0.0004292,30]
[399287340,1766246827930,-536.07752599,0.0004292,90]
[399287341,1766246827979,-521.34453864,0.0004292,30]
[399287342,1766246828026,-150.01,0.0004292,120]
[399287343,1766246828076,-4488.80163418,0.0004292,30]
[399287344,1766246828125,-500.0,0.0004292,120]
[399287345,1766246828174,-500.0,0.0004292,120]
[399287346,1766246828223,-588.45268964,0.0004292,120]
[399287347,1766246828274,-909.5114963,0.0004292,120]
[399287348,1766246828323,-150.01,0.0004292,120]
[399287349,1766246828373,-50000.0,0.0004292,30]
[399287350,1766246828423,-50000.0,0.0004292,31]
[399287351,1766246828474,-50000.0,0.0004292,32]
[399287352,1766246828523,-1000.0,0.0004292,30]
[399287353,1766246828569,-47825.97451204,0.0004292,30]
[399287354,1766246828621,-3963.87047775,0.0004292,30]
[399287355,1766246828682,-5000.0,0.0004292,30]
[399287356,1766246828731,-34141.90835772,0.0004292,30]
[399287357,1766246828778,-4804.51483895,0.0004292,30]
[399287358,1766246828827,-4908.17220548,0.0004292,30]
[399287359,1766246828874,-5308.8203579,0.0004292,30]
[399287360,1766246828919,-4932.33268486,0.0004292,30]
[399287361,1766246828967,-3637.49100889,0.0004292,30]
[399287362,1766246829016,-4942.3135986,0.0004292,30]
[399287363,1766246829062,-20813.9920007,0.0004292,30]
[399287364,1766246829108,-4530.59725461,0.0004292,30]
[399287365,1766246829157,-3777.84350605,0.0004292,30]
[399287366,1766246829204,-4384.81128455,0.0004292,30]
[399287367,1766246829253,-3908.79851458,0.0004292,30]
[399287368,1766246829298,-3688.19135018,0.0004292,30]
[399287369,1766246829343,-5078.71712949,0.0004292,30]
[399287370,1766246829387,-32080.10128385,0.0004292,30]
[399287371,1766246829431,-491.72007673,0.0004292,30]
[399287372,1766246829475,-600.64,0.0004292,120]
[399287373,1766246829517,-203.97022576,0.0004292,30]
[399287374,1766246829559,-529.0,0.0004292,120]
[399287375,1766246829603,-500.0,0.0004292,120]
[399287376,1766246829647,-564.62,0.0004292,120]
[399287379,1766246830363,-9143.16821828,0.0004292,120]
[399287380,1766246830412,-220.0,0.0004292,120]
[399287381,1766246830460,-194.54114277,0.0004292,30]
[399287382,1766246830504,-184.72806865,0.0004292,120]
[399287383,1766246830548,-1015.27991646,0.0004292,120]
[399287384,1766246830593,-500.0,0.0004292,120]
[399287385,1766246830638,-635.84321278,0.0004292,120]
[399287386,1766246830679,-975.65786515,0.0004292,31]
[399287387,1766246830732,-183.68567075,0.0004292,60]
[399287388,1766246830774,-440.629,0.0004292,120]
[399287389,1766246830815,-201.99301,0.0004292,60]
[399287390,1766246830861,-463.22591606,0.0004292,120]
[399287391,1766246830907,-747.18544879,0.0004292,120]
[399287392,1766246830953,-1002.240124,0.0004292,31]
[399287393,1766246830997,-189.0,0.0004292,120]
[399287394,1766246831041,-1138604.95410287,0.0004292,30]
[399287395,1766246831084,-226.85965,0.0004292,120]
[399287396,1766246831126,-8264.79981225,0.0004292,30]
[399287397,1766246831168,-257.03041377,0.0004292,60]
[399287398,1766246831211,-204.21542799,0.0004292,30]
[399287399,1766246831254,-104753.27507405,0.0004292,30]
[399287400,1766246831298,-240.77543611,0.0004292,30]